Cogmind - Beta 11 X8 @@@ ROGUE MODE // 2021.11.23 @ 14:28:24 Player: biogoob Result: Destroyed by YI-UF0 with YI-UF0's Doublenader Performance ------------- Evolutions (0) 0 Regions Visited (2) 400 Robots Destroyed (11) 55 Value Destroyed (329) 329 Prototype IDs (0) 0 Alien Tech Used (0) 0 Bonus (0) 0 TOTAL SCORE: 784 Bonus ------- None Cogmind --------- Core Integrity 0/250 Matter 300/300 Energy 97/100 System Corruption 0% Temperature Cool (0) Movement Core (350) Ox6 Location -10/Mines Parts ------- > --- POWER (1) -------- (None) > --- PROPULSION (2) --- (None) > --- UTILITY (2) ------ Large Storage Unit Improved Targeting Computer > --- WEAPON (2) ------- (None) > --- INVENTORY (15) --- Ion Engine Light Nuclear Core Aluminum Leg Aluminum Leg Aluminum Leg Compact Wheel Improved Heat Sink Medium Storage Unit Improved Targeting Computer Hardened Light Armor Plating Hardened Light Armor Plating Hardened Light Armor Plating Small Laser Rocket Launcher Peak State ------------ > --- POWER ------------ Light Ion Engine > --- PROPULSION ------- Aluminum Leg Aluminum Leg > --- UTILITY ---------- Large Storage Unit Improved Targeting Computer > --- WEAPON ----------- Particle Gun Assault Rifle > --- INVENTORY -------- Ion Engine Aluminum Leg Aluminum Leg Aluminum Leg Aluminum Leg Wheel Compact Wheel Improved Heat Sink Medium Storage Unit Improved Targeting Computer Hardened Light Armor Plating Hardened Light Armor Plating Hardened Light Armor Plating Small Laser [Rating: 11] Favorites ----------- Power Light Ion Engine Engine Light Ion Engine Propulsion Aluminum Leg Leg Aluminum Leg Wheel Wheel Utility Large Storage Unit Device Heat Sink Storage Large Storage Unit Processor Improved Targeting Computer Weapon Assault Rifle Energy Gun Particle Gun Ballistic Gun Assault Rifle Build | -11 -10 -10 ------- Run | Scr Mat Min Slots Evolved . | . . . Power . | . . . Propulsion . | . . . Utility . | . . . Weapon . | . . . Parts Attached 12 | . 8 4 Power . | . . . Engine . | . . . Core . | . . . Reactor . | . . . Propulsion 6 | . 3 3 Treads . | . . . Leg 5 | . 3 2 Wheel 1 | . . 1 Hover . | . . . Flight . | . . . Utility 4 | . 4 . Device 2 | . 2 . Storage 1 | . 1 . Processor 1 | . 1 . Hackware . | . . . Protection . | . . . Artifact . | . . . Weapon 2 | . 1 1 Energy Gun 1 | . . 1 Energy Cannon . | . . . Ballistic Gun 1 | . 1 . Ballistic Cannon . | . . . Launcher . | . . . Special Weapon . | . . . Impact Weapon . | . . . Slashing Weapon . | . . . Piercing Weapon . | . . . Special Melee Weapon . | . . . Unidentified Prototypes . | . . . Parts Lost 8 | . . 8 Power 1 | . . 1 Propulsion 4 | . . 4 Utility . | . . . Weapon 3 | . . 3 Highest Loss Streak 6 | . . 6 Average Slot Usage (%) 97 | . 97 98 Engine 13 | . 14 13 Leg 27 | . 28 27 Device 4 | . 8 . Storage 14 | . 14 14 Processor 7 | . 3 14 Energy Gun 5 | . . 12 Ballistic Gun 22 | . 28 15 Naked Turns . | . . . Heaviest Build 28 | 11 28 28 Greatest Support 20 | 20 20 20 Greatest Overweight (x) 6 | . 1 6 Average Overweight (x) 1 | . . 1 Largest Inventory Capacity 15 | . 15 15 Average Capacity 14 | . 14 15 Most Carried 15 | . 15 15 Average Carried 11 | . 8 14 Final Capacity 15 | 8 15 15 Final Carried 14 | 6 14 14 Class Distribution -------------------- 100% | Mutant Dominant Class ---------------- Mutant | -10/Materials Mutant | -10/Mines Resources | -11 -10 -10 ----------- Run | Scr Mat Min Matter Collected 505 | 200 165 140 Remotely . | . . . Salvage Created 582 | . 330 252 Parts 16 | . 13 3 Haulers Intercepted . | . . . Recyclers Shooed 1 | . . 1 Parts Field Recycled . | . . . Retrieved Matter . | . . . Parts Self-Destructed . | . . . Prevented . | . . . Kills | -11 -10 -10 ------- Run | Scr Mat Min Combat Hostiles Destroyed 8 | . 6 2 Guns 8 | . 6 2 Classes Destroyed 2 | . 2 . Recycler 3 | . 1 2 Grunt 8 | . 6 2 Best Kill Streak 3 | . 3 2 Combat Bots Only 2 | . 2 2 Max Kills in Single Turn 2 | . 2 1 Gunslinging 1 | . 1 . Exploded . | . . . Melee . | . . . Uniques/NPCs Destroyed . | . . . Combat | -11 -10 -10 -------- Run | Scr Mat Min Damage Taken 1074 | . 399 675 Core 257 | . 80 177 Absorbed by Shields . | . . . Core Remaining (%) 100 | 100 . . Volleys Fired 42 | . 27 15 Largest 2 | . 2 2 Hottest 85 | . 40 85 Shots Fired 82 | . 54 28 Gun 82 | . 54 28 Cannon . | . . . Launcher . | . . . Special . | . . . Kinetic 74 | . 54 20 Thermal 8 | . . 8 Explosive . | . . . Electromagnetic . | . . . Robot Hit Streak 8 | . 8 8 Robot Miss Streak 2 | . 2 2 Penetration Max . | . . . Secondary Targets 2 | . 2 . Max Gunslinging Chain 1 | . 1 . Shots Hit Robots 59 | . 42 17 Core Hits 24 | . 16 8 Critical Kills . | . . . Critical Parts Destroyed 1 | . 1 . Critical Strikes 1 | . 1 . Destroy 1 | . 1 . Melee Attacks . | . . . Impact . | . . . Slashing . | . . . Piercing . | . . . Sneak Attacks . | . . . Combat Hostiles . | . . . Follow-up Attacks . | . . . Damage Inflicted 739 | . 508 231 Guns 739 | . 508 231 Cannons . | . . . Explosions . | . . . Melee . | . . . Ramming . | . . . Kinetic 647 | . 508 139 Thermal 92 | . . 92 Explosive . | . . . Electromagnetic . | . . . Impact . | . . . Slashing . | . . . Piercing . | . . . Highest Corruption . | . . . Average Corruption . | . . . Corruption Purged . | . . . Overload Shots . | . . . Overflow Damage . | . . . Projectiles . | . . . Explosions . | . . . Melee . | . . . Knockbacks . | . . . Impact . | . . . Kinetic . | . . . Secondary . | . . . Self-Inflicted Damage . | . . . Shots . | . . . Rammed . | . . . Targets Rammed . | . . . Kicked . | . . . Crushed . | . . . Highest Temperature 57 | . 6 57 Average Temperature 16 | . 3 22 Received Heat Transfer 324 | . 237 87 Siege Activations . | . . . Robots Corrupted . | . . . Combat Hostiles . | . . . Parts Fried . | . . . Impact Corruptions . | . . . Robots Melted . | . . . Combat Hostiles . | . . . Parts Melted . | . . . Heat Transferred 222 | . . 222 Parts Sabotaged . | . . . Parts Stolen . | . . . Parts Stripped . | . . . Power Chain Reactions . | . . . Missiles Intercepted . | . . . Alert | -11 -10 -10 ------- Run | Scr Mat Min Peak Influence 140 | . 140 80 Initial 40 | . . 40 Average 51 | . 48 55 Maximum Alert Level . | . . . Low Security (%) 100 | . 100 100 Level 1 . | . . . Level 2 . | . . . Level 3 . | . . . Level 4 . | . . . Level 5 . | . . . High Security . | . . . Max Security . | . . . Squads Dispatched 1 | . 1 . Investigation . | . . . Extermination . | . . . Reinforcement 1 | . 1 . Assault . | . . . Garrison . | . . . Intercept . | . . . Construction Impeded . | . . . Haulers Reinforced . | . . . Active Scanning Responses . | . . . Cargo Convoy Interrupts . | . . . Stealth | -11 -10 -10 --------- Run | Scr Mat Min Distress Signals . | . . . Communications Jammed . | . . . Distress Signals . | . . . Times Spotted 16 | . 13 3 Peak Tracking Total 4 | . 4 2 Tactical Retreats 4 | . 4 . Traps | -11 -10 -10 ------- Run | Scr Mat Min Traps Triggered . | . . . Indirectly . | . . . Trap Hack Attempts . | . . . Triggered . | . . . Disarmed . | . . . Reprogrammed . | . . . Reused . | . . . Traps Extracted . | . . . Installed . | . . . Triggered . | . . . Machines | -11 -10 -10 ---------- Run | Scr Mat Min Machines Disabled . | . . . Max in Single Turn . | . . . Machines Sabotaged . | . . . Garrisons Compromised . | . . . Overloaded Fab Kills . | . . . Hacking | -11 -10 -10 --------- Run | Scr Mat Min Machines Accessed 2 | . 2 . Terminals 2 | . 2 . Fabricators . | . . . Repair Stations . | . . . Recycling Units . | . . . Scanalyzers . | . . . Garrison Access . | . . . Total Hacks 7 | . 7 . Successful 4 | . 4 . Failed 3 | . 3 . Catastrophic . | . . . Database Lockouts . | . . . Manual 5 | . 5 . Terminals 7 | . 7 . Fabricators . | . . . Repair Stations . | . . . Recycling Units . | . . . Scanalyzers . | . . . Garrison Access . | . . . Terminal Hacks 2 | . 2 . Robot Analysis 1 | . 1 . Locate Traps 1 | . 1 . Fabricator Hacks . | . . . Repair Station Hacks . | . . . Recycling Unit Hacks . | . . . Scanalyzer . | . . . Garrison Access Hacks . | . . . Unauthorized Hacks 2 | . 2 . Terminals 2 | . 2 . Track 1 | . 1 . Botnet 1 | . 1 . Fabricators . | . . . Repair Stations . | . . . Recycling Units . | . . . Scanalyzers . | . . . Garrison Access . | . . . Data Cores Recovered . | . . . Used . | . . . Hacking Detections 2 | . 2 . Full Trace Events . | . . . Feedback Events . | . . . Feedback Blocked . | . . . Robot Schematics Acquired . | . . . Robots Built . | . . . Authchips . | . . . Time . | . . . Total Robot Build Rating . | . . . Part Schematics Acquired . | . . . Parts Built . | . . . Authchips . | . . . Time . | . . . Total Part Build Rating . | . . . Parts Repaired . | . . . Time . | . . . Parts Recycled . | . . . Recycled Matter . | . . . Retrieved Matter . | . . . Retrieved Components . | . . . Parts Scanalyzed . | . . . Part Schematics Acquired . | . . . Parts Damaged . | . . . Bothacking | -11 -10 -10 ------------ Run | Scr Mat Min Used RIF Installer . | . . . Robots Hacked . | . . . Non-combat . | . . . Combat . | . . . Robot Hacks Applied . | . . . Relay Couplers Released . | . . . Fabnet Peak Effective % . | . . . Robots Rewired . | . . . Allies Hacked . | . . . Hacks Repelled . | . . . Allies | -11 -10 -10 -------- Run | Scr Mat Min Total Allies . | . . . Largest Group . | . . . Highest-Rated Group . | . . . Highest-Rated Ally . | . . . Total Orders . | . . . Ally Attacks . | . . . Total Damage . | . . . Kills . | . . . Allies Corrupted . | . . . Allies Melted . | . . . Intel | -11 -10 -10 ------- Run | Scr Mat Min Robot Analysis Total 1 | . 1 . Derelict Logs Recovered . | . . . Drone Launches . | . . . Drone Recoveries . | . . . Exploration | -11 -10 -10 ------------- Run | Scr Mat Min Turns Passed 1268 | . 738 530 Spaces Moved 584 | 1 332 251 Core 1 | . . 1 Treads . | . . . Legs 581 | 1 332 248 Wheels 2 | . . 2 Hover . | . . . Flight . | . . . Fastest Speed 95 | 120 120 95 Average Speed 189 | 120 189 190 Slowest Speed 350 | 120 190 350 Overloaded Moves . | . . . Propulsion Burnouts . | . . . Robots Hopped . | . . . Cave-ins Triggered . | . . . Exploration Rate (%) 38 | 1 59 54 Regions Visited 2 Branch Regions 1 Pre-discovered Areas 1 | . . 1 Known Exits Taken . | . . . Unknown Exits Taken 2 | 1 1 . Scrap Searched . | . . . Spaces Dug . | . . . Terrain Destroyed . | . . . Melee . | . . . Projectile . | . . . AOE . | . . . Terrain Rammed . | . . . Walls Destroyed . | . . . Machines Disabled . | . . . Actions | -11 -10 -10 --------- Run | Scr Mat Min Total 666 | . 390 276 Wait 11 | . 9 2 Move 582 | . 331 251 Hop . | . . . Pick Up 11 | . 8 3 Fast Attach 3 | . 3 . Attach 3 | . . 3 Detach 1 | . 1 . Swap 6 | . 5 1 Drop 7 | . 6 1 Fire 42 | . 27 15 Melee . | . . . Ram . | . . . Kick . | . . . Crush . | . . . Escape Stasis . | . . . Rewire . | . . . Trap . | . . . Miscellaneous . | . . . Route ------- -11/Scrapyard -10/Materials (discovered 2 exits: [*Mat] / [*Min]) -10/Mines (discovered 1 exit: [*Mat]) History --------- Turn | Location | Event 1 | -11/Scrapyard | Discovered new exit (range 0) 1 | -11/Scrapyard | Entered Materials 306 | -10/Materials | Discovered new exit (range 8) 311 | -10/Materials | Build established: Mutant 556 | -10/Materials | Discovered new exit (range 16) 739 | -10/Materials | Entered Mines 740 | -10/Mines | Learned location of Storage (-8) 902 | -10/Mines | Discovered new exit (range 7) 909 | -10/Mines | Received a Rocket Launcher from a helpful Derelict 1057 | -10/Mines | Assembled infested the area 1264 | -10/Mines | Core integrity fell below 50% 1268 | -10/Mines | Core integrity fell below 20% 1269 | -10/Mines | Destroyed by YI-UF0 with YI-UF0's Doublenader Last Messages --------------- 00906_ OT-3DI(g): "Everyone knows a good old rocket launcher goes a long way." 00907_ OT-3DI(g): "Need to get rid of a swarm? Done. Need a big hole in the wall? Done." 00908_ OT-3DI(g): "Need a small hole in the wall? Leave that to the mining laser wimps, I say!" 00909_ OT-3DI(g): "Would you like a rocket launcher? I know I would if I were you, so I'm going to lend you mine." 00909_ OT-3DI(g) slips back into the shadows. 00913_ Dropped Aluminum Leg. 00914_ Acquired Rocket Launcher. 01057_ ALERT: Infestation in the mines, dispatching Demolisher response squad. 01069_ HV Slug penetrates Wall. 01255_ Assault Rifle destroyed. 01255_ Aluminum Leg destroyed. 01257_ Lgt. Ion Engine destroyed. 01259_ YI-UF0 mumbles something. 01261_ Particle Gun destroyed. 01262_ The unstable cave ceiling collapses. 01267_ Aluminum Leg destroyed. 01267_ Wheel destroyed. Map ----- +----------------------------------------------------+ | | | ?????????????????????????????????????? | | ?????????????????????????????????????? | | ?????????????????????????????????????? | | ?????????????????????????????????????? | | ?????????????????????????????????????? | | ?????????????????????????????????????? | | ?????????????????????????????????????? | | ?????????????????????????????????????? | | ?????????????????????????????????????? | | ?????????????????????????? ?????????? | | ?????????????????????????? #???????? | | ????????????????????????? #???????? | | ????????????????????????? #???????? | | ????????????????????????? ????????? | | ????????????????????????? ????????? | | ????????????????????????? ????????? | | ???????????????????????### #????????? | | ????????????????????#### #????????? | | ???????????????????## # #????????? | | ?????????????????### g #????????? | | ?????????????????? ###??????? | | ???????????????????# ##?????? | | ???????????????????# #?????? | | ?????????????????????# ##????? | | ??????????????????????# @ ####?? | | ??????????????????????## #?? | | ??????????????????????# #? | | ??????????????????????# #? | | ??????????????????????## ##? | | ???????????????????????# #?? | | ???????????????????????## #?? | | ????????????????????????## # ##?? | | ?????????????????????????# #??? | | ?????????????????????????## #??? | | ?????????????????????????# ##??? | | ?????????????????????????# # #???? | | ????????????????????????## #### #???? | | ????????????????????????# #??# #???? | | #############????# ##### ### #???? | | #????# ##??? | | ########### ###### #??# ##?? | | ???????## #### #?? | | ??????## # #?? | | ??????# ########## ## #####?? | | ??????# #????#???## ##?????? | | ??????## #?????????# ##??????? | | #??????## ## #?????? ??# ##??????? | | #???????##### #????# #?## ##?????? | | #???????????# #???? #??# ##????? | +----------------------------------------------------+ Best States ------------- Heat Dissipation 39 Energy Generation 10 Energy Capacity 125 Matter Stores 300 Matter Capacity 300 Sight Range 16 Terrain Scan Density 10 Evasion (%) 40 Targeting Accuracy 6 Item Schematics ----------------- None Robot Schematics ------------------ None Fabricated ------------ Nothing Alien Tech Used ----------------- None Achievements -------------- None Challenges ------------ None Game ------ Seed DisruptorChargeChip Manual? 0 Play Time 00:07:29 Cumulative 67.4 hours Start 2021.11.23 @ 14:22:52 End 2021.11.23 @ 14:28:24 Sessions 1 Manual Loads 0 Difficulty Rogue Special Mode None Game No. 77 Rogue 57 Adventurer 17 Explorer 3 Win Type - Total 1 Types 0/0/1/0/0/0/0/0/0 Lore% 39 Gallery% 44 Achievement% 42 Wizard Run 0 Options --------- ASCII 1 Keyboard 1 Movement Vi Keybinds 0 Fullscreen 1 Font 18/Terminus Map View 83x54 Tactical HUD 1 Map Filters SATURATION(80) Filters SATURATION(80) Steam 1 RUN: 5c79b003-829a-43d9-9c4e-221a9486c99e